fUST/lending_fUST_20250128
["ID","MTS","AMOUNT","RATE_DAILY","PERIOD"]
[350704512,1738073438200,-500.0,0.00016438,2]
[350704513,1738073438210,-500.0,0.00016438,2]
[350704514,1738073438219,-500.0,0.00016438,2]
[350704515,1738073438228,-500.0,0.00016438,2]
[350704516,1738073438238,-500.0,0.00016438,2]
[350704517,1738073438247,-500.0,0.00016438,2]
[350704518,1738073438256,-500.0,0.00016438,2]
[350704519,1738073438266,-500.0,0.00016438,2]
[350704520,1738073438277,-532.01460349,0.00016438,2]
[350704521,1738073438287,-500.0,0.00016438,2]
[350704522,1738073438296,-500.0,0.00016438,2]
[350704523,1738073438306,-500.0,0.00016438,2]
[350704525,1738073438315,-500.0,0.00016438,2]
[350704527,1738073438324,-1159.97,0.00016438,2]
[350704529,1738073438333,-500.0,0.00016438,2]
[350704531,1738073438342,-500.0,0.00016438,2]
[350704533,1738073438352,-153.0,0.000165,2]
[350704535,1738073438361,-153.0,0.000165,2]
[350704537,1738073438370,-500.0,0.00016569,2]
[350704539,1738073438379,-500.0,0.00016569,2]
[350704541,1738073438389,-500.0,0.00016569,2]
[350704543,1738073438398,-500.0,0.00016569,2]
[350704545,1738073438407,-500.0,0.0001657,2]
[350704547,1738073438416,-475.49,0.00016574,2]
[350704549,1738073438426,-238.325,0.00016575,2]
[350704551,1738073438436,-602.86287148,0.00016575,2]
[350704553,1738073438445,-500.0,0.00016575,2]
[350704555,1738073438455,-500.0,0.00016575,2]
[350704557,1738073438465,-500.0,0.00016575,2]
[350704559,1738073438474,-500.0,0.00016575,2]
[350704561,1738073438483,-500.0,0.00016575,2]
[350704563,1738073438492,-500.0,0.00016575,2]
[350704565,1738073438501,-500.0,0.00016575,2]
[350704567,1738073438511,-500.0,0.00016575,2]
[350704569,1738073438522,-500.0,0.00016575,2]
[350704571,1738073438532,-906.82,0.00016575,2]
[350704573,1738073438541,-3827.07,0.00016575,2]
[350704575,1738073438551,-1509.77,0.00016575,2]
[350704577,1738073438560,-500.0,0.00016575,2]
[350704579,1738073438569,-581.48,0.00016575,2]
[350704581,1738073438579,-500.0,0.00016575,2]
[350704583,1738073438589,-585.29734933,0.00016575,2]
[350704585,1738073438599,-500.0,0.00016575,2]
[350704587,1738073438608,-500.0,0.00016575,2]
[350704589,1738073438618,-500.0,0.00016575,2]
[350704591,1738073438627,-500.0,0.00016575,2]
[350704593,1738073438637,-500.0,0.00016575,2]
[350704595,1738073438646,-500.0,0.00016575,2]
[350704597,1738073438655,-2.21626534,0.00016575,2]
[350704604,1738073438709,-357.17665565,0.00016575,2]
[350704606,1738073438718,-500.0,0.00016575,2]
[350704607,1738073438727,-5.49316263,0.00016575,2]
[350704608,1738073438740,-1154.47683737,0.00016575,2]
[350704609,1738073438749,-500.0,0.00016575,2]
[350704610,1738073438758,-153.0,0.000166,2]
[350704611,1738073438768,-500.0,0.00016712,2]
[350704612,1738073438779,-500.0,0.00016712,2]
[350704613,1738073438788,-500.0,0.00016712,2]
[350704614,1738073438798,-445.62728864,0.00016712,2]
[350704615,1738073438807,-500.0,0.00016712,2]
[350704616,1738073438817,-500.0,0.00016712,2]
[350704617,1738073438826,-500.0,0.00016712,2]
[350704618,1738073438835,-500.0,0.00016712,2]
[350704619,1738073438845,-500.0,0.00016712,2]
[350704620,1738073438855,-906.82,0.00016712,2]
[350704621,1738073438864,-3827.07,0.00016712,2]
[350704622,1738073438873,-1509.77,0.00016712,2]
[350704623,1738073438883,-500.0,0.00016712,2]
[350704624,1738073438892,-581.48,0.00016712,2]
[350704625,1738073438901,-227.66486432,0.00016712,2]
[350704626,1738073438910,-500.0,0.00016712,2]
[350704627,1738073438920,-500.0,0.00016712,2]
[350704628,1738073438929,-500.0,0.00016712,2]
[350704629,1738073438938,-500.0,0.00016712,2]
[350704630,1738073438948,-449.5,0.00016712,2]
[350704631,1738073438957,-500.0,0.00016712,2]
[350704632,1738073438969,-500.0,0.00016712,2]
[350704633,1738073438979,-1159.97,0.00016712,2]
[350704634,1738073438988,-500.0,0.00016712,2]
[350704635,1738073438997,-520.12807554,0.00016778,2]
[350704636,1738073439007,-437.42897593,0.00016778,2]
[350704637,1738073439019,-62.57102407,0.00016778,2]
[350704638,1738073439030,-537.0,0.00016779,2]
[350704639,1738073439039,-2045.0,0.00016779,2]
[350704640,1738073439049,-451.28378023,0.00016779,2]
[350704641,1738073439065,-615.17290421,0.00016779,2]
[350704642,1738073439076,-310.66551479,0.00016779,2]
[350704692,1738073440685,-395.0,0.00016673,2]
[350704694,1738073440695,-925.87780077,0.00016779,2]
[350704696,1738073440705,-500.0,0.00016789,2]
[350704698,1738073440714,-500.0,0.000168,2]
[350704700,1738073440724,-500.0,0.00016849,2]
[350704702,1738073440735,-500.0,0.00016849,2]
[350704704,1738073440745,-494.85863172,0.00016849,2]
[350704706,1738073440754,-387.32,0.00016849,2]
[350704708,1738073440764,-500.0,0.00016849,2]
[350704710,1738073440773,-500.0,0.00016849,2]
[350704712,1738073440784,-530.36350582,0.00016849,2]
[350704714,1738073440793,-500.0,0.00016849,2]
[350704717,1738073440803,-906.82,0.00016849,2]
[350704720,1738073440813,-3827.07,0.00016849,2]
[350704723,1738073440822,-1509.77,0.00016849,2]
[350704726,1738073440831,-500.0,0.00016849,2]
[350704728,1738073440841,-581.48,0.00016849,2]
[350704730,1738073440850,-500.0,0.00016849,2]
[350704732,1738073440859,-500.0,0.00016849,2]
[350704734,1738073440869,-500.0,0.00016849,2]
[350704736,1738073440878,-546.79928433,0.00016849,2]
[350704738,1738073440888,-500.0,0.00016849,2]
[350704740,1738073440897,-500.0,0.00016849,2]
[350704742,1738073440906,-1159.97,0.00016849,2]
[350704744,1738073440916,-500.0,0.00016849,2]
[350704746,1738073440925,-500.0,0.00016986,2]
[350704748,1738073440935,-500.0,0.00016986,2]
[350704750,1738073440944,-500.0,0.00016986,2]
[350704752,1738073440953,-500.0,0.00016986,2]
[350704754,1738073440963,-500.0,0.00016986,2]
[350704756,1738073440978,-906.82,0.00016986,2]
[350704758,1738073440988,-3827.07,0.00016986,2]
[350704760,1738073440997,-1509.77,0.00016986,2]
[350704762,1738073441007,-500.0,0.00016986,2]
[350704765,1738073441018,-581.48,0.00016986,2]
[350704766,1738073441027,-500.0,0.00016986,2]
[350704769,1738073441037,-500.0,0.00016986,2]
[350704770,1738073441047,-500.0,0.00016986,2]
[350704773,1738073441057,-500.0,0.00016986,2]
[350704775,1738073441067,-500.0,0.00016986,2]
[350704776,1738073441076,-1159.97,0.00016986,2]
[350704778,1738073441085,-500.0,0.00016986,2]
[350704780,1738073441095,-173.29454244,0.00017036,2]
[350704783,1738073441104,-500.0,0.00017067,2]
[350704784,1738073441114,-500.0,0.00017123,2]
[350704786,1738073441123,-500.0,0.00017123,2]
[350704789,1738073441133,-500.0,0.00017123,2]
[350704790,1738073441143,-500.0,0.00017123,2]
[350704792,1738073441152,-500.0,0.00017123,2]
[350704794,1738073441162,-906.82,0.00017123,2]
[350704797,1738073441172,-947.81227839,0.00017123,2]
[350705181,1738073444774,-500.0,0.00016438,2]
[350705183,1738073444783,-500.0,0.00016575,2]
[350705185,1738073444793,-500.48304856,0.00016712,2]
[350705188,1738073444803,-2879.25772161,0.00017123,2]
[350705190,1738073444813,-1509.77,0.00017123,2]
[350705191,1738073444822,-500.0,0.00017123,2]
[350705194,1738073444832,-581.48,0.00017123,2]
[350705195,1738073444841,-500.0,0.00017123,2]
[350705198,1738073444851,-500.0,0.00017123,2]
[350705199,1738073444861,-500.0,0.00017123,2]
[350705202,1738073444871,-382.04511129,0.00017123,2]
[350705204,1738073444881,-500.0,0.00017123,2]
[350705205,1738073444890,-1159.97,0.00017123,2]
[350705208,1738073444900,-500.0,0.00017123,2]
[350705210,1738073444910,-500.0,0.00017194,2]
[350705211,1738073444920,-500.0,0.0001726,2]
[350705214,1738073444930,-500.0,0.0001726,2]
[350705216,1738073444939,-500.0,0.0001726,2]
[350705218,1738073444948,-500.0,0.0001726,2]
[350705220,1738073444958,-906.82,0.0001726,2]
[350705222,1738073444969,-3827.07,0.0001726,2]
[350705224,1738073444982,-1509.77,0.0001726,2]
[350705226,1738073444991,-521.95,0.0001726,2]
[350705228,1738073445000,-581.48,0.0001726,2]
[350705230,1738073445011,-500.0,0.0001726,2]
[350705233,1738073445020,-500.0,0.0001726,2]
[350705235,1738073445029,-500.0,0.0001726,2]
[350705237,1738073445039,-500.0,0.0001726,2]
[350705239,1738073445049,-1159.97,0.0001726,2]
[350705242,1738073445063,-500.0,0.0001726,2]
[350705244,1738073445073,-195.7837045,0.0001726,2]
[350705246,1738073445082,-153.0,0.0001726,2]
[350705248,1738073445091,-153.0,0.0001726,2]
[350705250,1738073445101,-500.0,0.00017397,2]
[350705252,1738073445111,-500.0,0.00017397,2]
[350705254,1738073445120,-500.0,0.00017397,2]
[350705256,1738073445129,-500.0,0.00017397,2]
[350705258,1738073445139,-906.82,0.00017397,2]
[350705261,1738073445148,-3827.07,0.00017397,2]
[350705262,1738073445157,-1509.77,0.00017397,2]
[350705265,1738073445167,-581.48,0.00017397,2]
[350705267,1738073445175,-500.0,0.00017397,2]
[350705269,1738073445185,-500.0,0.00017397,2]
[350705270,1738073445194,-500.0,0.00017397,2]
[350705272,1738073445203,-500.0,0.00017397,2]
[350705274,1738073445213,-1159.97,0.00017397,2]
[350705276,1738073445222,-500.0,0.00017397,2]
[350705278,1738073445231,-269.2,0.000175,2]
[350705280,1738073445240,-500.0,0.00017534,2]
[350705283,1738073445252,-232.00508852,0.00017534,2]
[350705285,1738073445262,-500.0,0.00017534,2]
[350705288,1738073445271,-500.0,0.00017534,2]
[350705289,1738073445280,-906.82,0.00017534,2]
[350705292,1738073445290,-1216.26539232,0.00017534,2]
[350705295,1738073445302,-2610.80460768,0.00017534,2]
[350705297,1738073445311,-1509.77,0.00017534,2]
[350705299,1738073445320,-581.48,0.00017534,2]
[350705301,1738073445333,-500.0,0.00017534,2]
[350705303,1738073445345,-500.0,0.00017534,2]
[350705306,1738073445357,-500.0,0.00017534,2]
[350705308,1738073445369,-556.1702251,0.00017534,2]
[350705310,1738073445381,-1159.97,0.00017534,2]
[350705312,1738073445392,-500.0,0.00017534,2]
[350705315,1738073445403,-500.0,0.00017564,2]
[350705317,1738073445413,-219.508478,0.00017671,2]
[350705319,1738073445425,-219.508478,0.00017671,2]
[350705321,1738073445436,-500.0,0.00017671,2]
[350705323,1738073445447,-500.0,0.00017671,2]
[350705326,1738073445458,-134.78821122,0.00017671,2]
[350705433,1738073446617,-451.75199864,0.00017671,2]
[350705435,1738073446628,-618.06453259,0.00017671,2]
[350705438,1738073446643,-288.75546741,0.00017671,2]
[350705440,1738073446653,-3827.07,0.00017671,2]
[350705442,1738073446663,-1509.77,0.00017671,2]
[350705444,1738073446673,-581.48,0.00017671,2]
[350705447,1738073446685,-500.0,0.00017671,2]
[350705449,1738073446696,-500.0,0.00017671,2]
[350705451,1738073446707,-500.0,0.00017671,2]
[350705453,1738073446719,-1159.97,0.00017671,2]
[350705455,1738073446731,-500.0,0.00017671,2]
[350705457,1738073446742,-500.0,0.00017673,2]
[350705460,1738073446754,-259.73088011,0.00017673,2]
[350705462,1738073446765,-240.59549277,0.00017673,2]
[350705464,1738073446778,-19706.52003731,0.000177,2]
[350707729,1738074042928,2187.02351704,0.0001515,2]
[350707730,1738074123672,3129.3141731,0.00015139,2]
[350707732,1738074211957,205.0468682,0.0001515,2]
[350707733,1738074235994,208.256421,0.00013973,2]
[350707747,1738074449086,-469.56918857,0.00015212,2]
[350707748,1738074449109,-430.43081143,0.00015294,2]
[350707749,1738074450125,-1212.18056717,0.00015294,2]
[350707750,1738074450146,-205.0468682,0.00015312,2]
[350707751,1738074450166,-204.602379,0.0001548,2]
[350707752,1738074450186,-980.0,0.00015678,2]
[350707753,1738074450206,-296.555579,0.00015803,2]
[350707754,1738074450225,-500.0,0.00015912,2]
[350707755,1738074450247,-166.25488757,0.00016337,2]
[350707756,1738074450268,-300.0,0.00016435,2]
[350707757,1738074450296,-554.16728404,0.00016436,2]
[350707758,1738074450321,-500.0,0.00016436,2]
[350707759,1738074450347,-500.0,0.00016436,2]
[350707760,1738074450374,-500.0,0.00016436,2]
[350707761,1738074450399,-500.0,0.00016436,2]
[350707762,1738074450421,-500.0,0.00016436,2]
[350707763,1738074450448,-500.0,0.00016436,2]
[350707764,1738074450470,-500.0,0.00016436,2]
[350707765,1738074450495,-500.0,0.00016436,2]
[350707766,1738074450518,-500.0,0.00016436,2]
[350707767,1738074450543,-500.0,0.00016436,2]
[350707768,1738074450564,-102.55519032,0.00016436,2]
[350707770,1738074452101,-171.7585365,0.00016436,2]
[350707771,1738074452135,-500.0,0.00016436,2]
[350707772,1738074452170,-500.0,0.00016436,2]
[350707773,1738074452199,-500.0,0.00016436,2]
[350707774,1738074452229,-500.0,0.00016436,2]
[350707775,1738074452254,-25.92201339,0.00016436,2]
[350707829,1738074635599,-158.4626811,0.00015572,2]
[350707830,1738074635609,-300.0,0.00016436,2]
[350707831,1738074635618,-500.0,0.00016437,2]
[350707832,1738074635627,-500.0,0.00016437,2]
[350707833,1738074635636,-500.0,0.00016437,2]
[350707834,1738074635645,-500.0,0.00016437,2]
[350707835,1738074635655,-500.0,0.00016437,2]
[350707836,1738074635663,-500.0,0.00016437,2]
[350707837,1738074635672,-500.0,0.00016437,2]
[350707838,1738074635681,-254.10156063,0.00016437,2]
[350707839,1738074635691,-500.0,0.00016437,2]
[350707840,1738074635700,-500.0,0.00016437,2]
[350707841,1738074635710,-500.0,0.00016437,2]
[350707842,1738074635719,-500.0,0.00016437,2]
[350707843,1738074635728,-500.0,0.00016437,2]
[350707844,1738074635737,-500.0,0.00016437,2]
[350707845,1738074635747,-500.0,0.00016437,2]
[350707846,1738074635758,-500.0,0.00016437,2]
[350707847,1738074635767,-500.0,0.00016437,2]
[350707848,1738074635776,-500.0,0.00016437,2]
[350707849,1738074635785,-500.0,0.00016437,2]
[350707850,1738074635794,-500.0,0.00016437,2]
[350707851,1738074635803,-500.0,0.00016437,2]
[350707852,1738074635813,-500.0,0.00016437,2]
[350707853,1738074635822,-500.0,0.00016437,2]
[350707854,1738074635831,-500.0,0.00016437,2]
[350707855,1738074635840,-500.0,0.00016437,2]
[350707856,1738074635850,-500.0,0.00016437,2]
[350707857,1738074635859,-500.0,0.00016437,2]
[350707858,1738074635868,-500.0,0.00016437,2]
[350707859,1738074635877,-500.0,0.00016437,2]
[350707860,1738074635886,-500.0,0.00016437,2]
[350707861,1738074635896,-500.0,0.00016437,2]
[350707862,1738074635906,-500.0,0.00016437,2]
[350707863,1738074635915,-500.0,0.00016437,2]
[350707864,1738074635925,-500.0,0.00016437,2]
[350707865,1738074635935,-500.0,0.00016437,2]
[350707866,1738074635945,-500.0,0.00016437,2]
[350707867,1738074635955,-500.0,0.00016437,2]
[350707868,1738074635964,-500.0,0.00016437,2]
[350707869,1738074635974,-500.0,0.00016437,2]
[350707870,1738074635983,-500.0,0.00016437,2]
[350707871,1738074635992,-500.0,0.00016437,2]
[350707872,1738074636001,-500.0,0.00016437,2]
[350707873,1738074636012,-543.73561882,0.00016437,2]
[350707874,1738074636021,-500.0,0.00016437,2]
[350707875,1738074636030,-500.0,0.00016437,2]
[350707876,1738074636039,-500.0,0.00016437,2]
[350707877,1738074636048,-500.0,0.00016437,2]
[350707878,1738074636057,-500.0,0.00016437,2]
[350707879,1738074636067,-500.0,0.00016437,2]
[350707880,1738074636077,-500.0,0.00016437,2]
[350707881,1738074636086,-500.0,0.00016437,2]
[350707882,1738074636095,-500.0,0.00016437,2]
[350707883,1738074636104,-500.0,0.00016437,2]
[350707884,1738074636113,-500.0,0.00016437,2]
[350707885,1738074636122,-500.0,0.00016437,2]
[350707886,1738074636131,-500.0,0.00016437,2]
[350707887,1738074636140,-500.0,0.00016437,2]
[350707888,1738074636150,-500.0,0.00016437,2]
[350707889,1738074636159,-36.8466154,0.00016437,2]
[350707890,1738074636171,-463.1533846,0.00016437,2]
[350707891,1738074636181,-500.0,0.00016437,2]
[350707892,1738074636190,-500.0,0.00016437,2]
[350707893,1738074636199,-233.7116054,0.00016437,2]
[350707894,1738074637341,-266.2883946,0.00016437,2]
[350707895,1738074637351,-400.0,0.00016437,2]
[350707896,1738074637361,-500.0,0.00016437,2]
[350707897,1738074637372,-500.0,0.00016438,2]
[350707898,1738074637382,-500.0,0.00016438,2]
[350707899,1738074637391,-500.0,0.00016438,2]
[350707900,1738074637400,-500.0,0.00016438,2]
[350707901,1738074637411,-424.01080265,0.00016438,2]
[350707902,1738074637420,-363.87319516,0.00016438,2]
[350707903,1738074637430,-500.0,0.00016438,2]
[350707904,1738074637439,-500.0,0.00016438,2]
[350707905,1738074637449,-500.0,0.00016438,2]
[350707906,1738074637458,-280.91739586,0.00016438,2]
[350707907,1738074637467,-227.44608362,0.00016438,2]
[350707908,1738074637476,-516.67376021,0.00016438,2]
[350707909,1738074637485,-500.0,0.00016438,2]
[350707910,1738074637494,-540.21321174,0.00016438,2]
[350707911,1738074637507,-249.62704411,0.00016438,2]
[350707912,1738074637516,-500.0,0.00016438,2]
[350707913,1738074637526,-500.0,0.00016438,2]
[350707914,1738074637535,-500.0,0.00016438,2]
[350707915,1738074637544,-500.0,0.00016438,2]
[350707916,1738074637554,-500.0,0.00016438,2]
[350707917,1738074637563,-266.20911421,0.00016438,2]
[350707918,1738074637572,-500.0,0.00016438,2]
[350707919,1738074637582,-175.08270276,0.00016438,2]
[350707920,1738074637591,-500.0,0.00016438,2]
[350707921,1738074637601,-500.0,0.00016438,2]
[350707922,1738074637611,-160.45074206,0.00016438,2]
[350707923,1738074637621,-500.0,0.00016438,2]
[350707924,1738074637630,-500.0,0.00016438,2]
[350707925,1738074637639,-363.87754926,0.00016438,2]
[350707926,1738074637650,-500.0,0.00016438,2]
[350707927,1738074637659,-500.0,0.00016438,2]
[350707928,1738074637668,-500.0,0.00016438,2]
[350707929,1738074637678,-500.0,0.00016438,2]
[350707930,1738074637687,-500.0,0.00016438,2]
[350707931,1738074637696,-350.944888,0.00016438,2]
[350707932,1738074637706,-500.0,0.00016438,2]
[350707933,1738074637715,-854.0,0.00016438,2]
[350707934,1738074637724,-500.0,0.00016438,2]
[350707935,1738074637733,-500.0,0.00016438,2]
[350707936,1738074637742,-500.0,0.00016438,2]
[350707937,1738074637751,-500.0,0.00016438,2]
[350707938,1738074637764,-511.40729018,0.00016438,2]
[350707939,1738074637773,-500.0,0.00016438,2]
[350707940,1738074637783,-500.0,0.00016438,2]
[350707941,1738074637792,-500.0,0.00016438,2]
[350707942,1738074637802,-307.92,0.00016438,2]
[350707943,1738074637811,-500.0,0.00016438,2]
[350707944,1738074637821,-503.99096917,0.00016438,2]
[350707945,1738074637831,-681.87,0.00016438,2]
[350707946,1738074637840,-500.0,0.00016438,2]
[350707947,1738074637850,-500.0,0.00016438,2]
[350707948,1738074637859,-500.0,0.00016438,2]
[350707949,1738074637867,-500.0,0.00016438,2]
[350707950,1738074637876,-500.0,0.00016438,2]
[350707951,1738074637886,-503.94343496,0.00016438,2]
[350707952,1738074637895,-500.0,0.00016438,2]
[350707953,1738074637904,-500.0,0.00016438,2]
[350707954,1738074637915,-500.0,0.00016438,2]
[350707955,1738074637925,-508.05497132,0.00016438,2]
[350707956,1738074637935,-353.57322542,0.00016438,2]
[350707957,1738074637944,-507.4068558,0.00016438,2]
[350707958,1738074637954,-510.69220395,0.00016438,2]
[350707959,1738074637963,-500.0,0.00016438,2]
[350707960,1738074637973,-500.0,0.00016438,2]
[350707961,1738074637983,-1429.63,0.00016438,2]
[350707962,1738074637993,-273.48334181,0.00016438,2]
[350707964,1738074638109,-299.26899633,0.00016438,2]
[350707965,1738074638119,-3330.56,0.00016438,2]
[350707967,1738074638129,-500.0,0.00016438,2]
[350707968,1738074638139,-500.0,0.00016438,2]
[350707969,1738074638148,-500.0,0.00016438,2]
[350707970,1738074638157,-507.33,0.00016438,2]
[350707971,1738074638168,-500.0,0.00016438,2]
[350707972,1738074638177,-252.06118461,0.00016438,2]
[350707973,1738074638186,-500.0,0.00016438,2]
[350707974,1738074638195,-388.26046777,0.00016438,2]
[350707975,1738074638205,-500.0,0.00016438,2]
[350707976,1738074638214,-500.0,0.00016438,2]
[350707977,1738074638224,-500.0,0.00016438,2]
[350707978,1738074638233,-500.0,0.00016438,2]
[350707979,1738074638243,-500.0,0.00016438,2]
[350707980,1738074638252,-500.0,0.00016438,2]
[350707981,1738074638263,-500.0,0.00016438,2]
[350707982,1738074638272,-500.0,0.00016438,2]
[350707983,1738074638281,-501.50141218,0.00016438,2]
[350707984,1738074638292,-506.72,0.00016438,2]
[350707985,1738074638302,-500.0,0.00016438,2]
[350707987,1738074638311,-287.44593701,0.00016438,2]
[350707989,1738074638321,-500.0,0.00016438,2]
[350707991,1738074638333,-500.0,0.00016438,2]
[350707993,1738074638344,-500.0,0.00016438,2]
[350707995,1738074638353,-500.0,0.00016438,2]
[350707997,1738074638362,-500.0,0.00016438,2]
[350707999,1738074638372,-500.0,0.00016438,2]
[350708001,1738074638383,-500.0,0.00016438,2]
[350708003,1738074638392,-500.0,0.00016499,2]
[350708005,1738074638401,-214.08965288,0.00016499,2]
[350708006,1738074638412,-9689.27683555,0.000165,2]
[350708010,1738074638714,-1854.00001521,0.000165,2]
[350708011,1738074638726,-616.98756208,0.000165,2]
[350708012,1738074638811,-25336.38338454,0.000165,2]
[350708013,1738074638822,-3209.59150975,0.000165,2]
[350708014,1738074639056,-19732.90855692,0.000165,2]
[350708021,1738074640847,-9946.85001142,0.000165,2]
[350708022,1738074640857,-300.61178856,0.00016562,2]
[350708024,1738074640867,-500.0,0.00016575,2]
[350708026,1738074640877,-500.0,0.00016575,2]
[350708027,1738074640886,-500.0,0.00016575,2]
[350708028,1738074640896,-500.0,0.00016575,2]
[350708030,1738074640906,-500.0,0.00016575,2]
[350708031,1738074640915,-348.19832871,0.00016575,2]
[350708033,1738074640925,-262.62649663,0.00016575,2]
[350708035,1738074640935,-500.0,0.00016575,2]
[350708037,1738074640944,-500.0,0.00016575,2]
[350708039,1738074640955,-500.0,0.00016575,2]
[350708041,1738074640964,-854.0,0.00016575,2]
[350708043,1738074640974,-500.0,0.00016575,2]
[350708045,1738074640983,-500.0,0.00016575,2]
[350708047,1738074640993,-500.0,0.00016575,2]
[350708049,1738074641002,-500.0,0.00016575,2]
[350708051,1738074641015,-271.53730881,0.00016575,2]
[350708053,1738074641025,-681.87,0.00016575,2]
[350708055,1738074641035,-515.79713349,0.00016575,2]
[350708056,1738074641044,-500.0,0.00016575,2]
[350708057,1738074641054,-517.23361222,0.00016575,2]
[350708058,1738074641063,-500.0,0.00016575,2]
[350708059,1738074641073,-500.0,0.00016575,2]
[350708060,1738074641082,-500.0,0.00016575,2]
[350708061,1738074641092,-1429.63,0.00016575,2]
[350708062,1738074641101,-3330.56,0.00016575,2]
[350708063,1738074641111,-500.0,0.00016575,2]
[350708064,1738074641120,-500.0,0.00016575,2]
[350708065,1738074641130,-500.0,0.00016575,2]
[350708066,1738074641139,-507.33,0.00016575,2]
[350708067,1738074641149,-500.0,0.00016575,2]
[350708068,1738074641159,-500.0,0.00016575,2]
[350708069,1738074641168,-500.0,0.00016575,2]
[350708070,1738074641178,-500.0,0.00016575,2]
[350708071,1738074641188,-500.0,0.00016575,2]
[350708072,1738074641197,-500.0,0.00016575,2]
[350708073,1738074641207,-500.0,0.00016575,2]
[350708074,1738074641216,-500.0,0.00016575,2]
[350708075,1738074641226,-506.72,0.00016575,2]
[350708076,1738074641235,-500.0,0.00016575,2]
[350708077,1738074641245,-500.0,0.00016575,2]
[350708078,1738074641254,-500.0,0.00016575,2]
[350708079,1738074641266,-500.0,0.00016575,2]
[350708080,1738074641275,-500.0,0.00016712,2]
[350708081,1738074641284,-171.55,0.00016712,2]
[350708082,1738074641293,-500.0,0.00016712,2]
[350708083,1738074641302,-500.0,0.00016712,2]
[350708084,1738074641311,-854.0,0.00016712,2]
[350708085,1738074641320,-500.0,0.00016712,2]
[350708086,1738074641330,-500.0,0.00016712,2]
[350708087,1738074641343,-500.0,0.00016712,2]
[350708088,1738074641353,-681.87,0.00016712,2]
[350708089,1738074641362,-500.0,0.00016712,2]
[350708090,1738074641371,-500.0,0.00016712,2]
[350708091,1738074641382,-500.0,0.00016712,2]
[350708092,1738074641391,-1429.63,0.00016712,2]
[350708093,1738074641401,-3330.56,0.00016712,2]
[350708094,1738074641411,-500.0,0.00016712,2]
[350708095,1738074641421,-500.0,0.00016712,2]
[350708096,1738074641431,-507.33,0.00016712,2]
[350708097,1738074641440,-500.0,0.00016712,2]
[350708098,1738074641449,-500.0,0.00016712,2]
[350708099,1738074641459,-500.0,0.00016712,2]
[350708100,1738074641468,-500.0,0.00016712,2]
[350708101,1738074641477,-500.0,0.00016712,2]
[350708102,1738074641486,-500.0,0.00016712,2]
[350708103,1738074641495,-500.0,0.00016712,2]
[350708104,1738074641505,-506.72,0.00016712,2]
[350708105,1738074641514,-500.0,0.00016712,2]
[350708106,1738074641523,-500.0,0.00016712,2]
[350708107,1738074641533,-500.0,0.00016712,2]
[350708108,1738074641543,-500.0,0.00016712,2]
[350708109,1738074641552,-500.0,0.00016749,2]
[350708110,1738074641562,-354.695,0.00016778,2]